bitfinex/quotes_BTCUSD_20240602
["timestamp","ask_amount","ask_price","bid_price","bid_amount"]
[1717319035878,0.144734,67776.0,67775.0,0.38744718]
[1717319036693,0.146734,67776.0,67775.0,0.39644718]
[1717319038129,0.148734,67776.0,67775.0,0.40544718]
[1717319039915,0.148734,67776.0,67775.0,0.45524718]
[1717319040352,0.148734,67776.0,67775.0,0.40544718]
[1717319040560,0.148734,67776.0,67775.0,0.45524718]
[1717319040701,0.148734,67776.0,67775.0,0.4552475]
[1717319048208,0.148734,67776.0,67775.0,0.4652475]
[1717319048383,0.148734,67776.0,67775.0,0.4552475]
[1717319048601,0.148734,67776.0,67775.0,0.4652475]
[1717319049964,0.148734,67776.0,67775.0,0.4552475]
[1717319052305,0.148734,67776.0,67775.0,0.45524754]
[1717319059950,0.148734,67776.0,67775.0,0.45524751]
[1717319061386,0.148734,67776.0,67775.0,0.44645512]
[1717319062212,0.148734,67776.0,67775.0,0.29335552]
[1717319062415,0.148734,67776.0,67775.0,0.44645518]
[1717319068889,0.148734,67776.0,67775.0,0.45645518]
[1717319073258,0.148734,67776.0,67775.0,0.45645502]
[1717319073817,0.148734,67776.0,67775.0,0.53395502]
[1717319074560,0.148734,67776.0,67775.0,0.45645502]
[1717319076127,0.148734,67776.0,67775.0,0.53395502]
[1717319076842,0.148734,67776.0,67775.0,0.68955502]
[1717319077361,0.148734,67776.0,67775.0,0.53395502]
[1717319077593,0.148734,67776.0,67775.0,0.533955]
[1717319089465,0.148734,67776.0,67775.0,0.53395488]
[1717319092766,0.148734,67776.0,67775.0,0.52395488]
[1717319093906,0.148734,67776.0,67775.0,0.52395398]
[1717319094155,0.148734,67776.0,67775.0,0.53395398]
[1717319095999,0.13994161,67776.0,67775.0,0.53395398]
[1717319104288,0.13994161,67776.0,67775.0,0.533954]
[1717319106092,0.004,67776.0,67775.0,0.700254]
[1717319107826,0.004,67776.0,67775.0,0.523954]
[1717319108028,0.004,67776.0,67775.0,0.474154]
[1717319108349,0.004,67776.0,67775.0,0.523954]
[1717319109263,0.004,67776.0,67775.0,0.533954]
[1717319112235,0.004,67776.0,67775.0,0.52517919]
[1717319112664,0.004,67776.0,67775.0,0.51517919]
[1717319115192,0.004,67776.0,67775.0,0.52517919]
[1717319115934,0.004,67776.0,67775.0,0.52517881]
[1717319125568,0.004,67776.0,67775.0,0.37208071]
[1717319125767,0.004,67776.0,67775.0,0.52517883]
[1717319126861,0.004,67776.0,67775.0,0.51517883]
[1717319127031,0.004,67776.0,67775.0,0.52517883]
[1717319127230,0.004,67776.0,67775.0,0.52517884]
[1717319129207,0.004,67776.0,67775.0,0.47537884]
[1717319129404,0.004,67776.0,67775.0,0.52517884]
[1717319132472,0.004,67776.0,67775.0,0.68297884]
[1717319133175,0.004,67776.0,67775.0,0.85952306]
[1717319133353,0.004,67776.0,67775.0,0.90375883]
[1717319133548,0.147526,67785.0,67784.0,0.28857]
[1717319133752,0.147526,67785.0,67784.0,0.48414791]
[1717319134333,0.147526,67785.0,67784.0,0.71714791]
[1717319135140,0.1636831,67794.0,67786.0,0.01]
[1717319135141,0.1616,67789.0,67786.0,0.01]
[1717319135311,0.309116,67789.0,67788.0,0.0498]
[1717319135552,0.309116,67789.0,67788.0,0.19557791]
[1717319135760,0.147516,67789.0,67788.0,0.19557791]
[1717319136579,0.183516,67789.0,67788.0,0.43157791]
[1717319136986,0.183516,67789.0,67788.0,0.28377791]
[1717319137212,0.183516,67789.0,67788.0,0.27377791]
[1717319137992,0.183516,67789.0,67788.0,0.28377791]
[1717319138403,0.220516,67789.0,67788.0,0.28577791]
[1717319142334,0.073,67789.0,67788.0,0.28577791]
[1717319144586,0.073,67789.0,67788.0,0.20057791]
[1717319148141,0.073,67789.0,67788.0,0.15077791]
[1717319148362,0.073,67789.0,67788.0,0.20057791]
[1717319149905,0.073,67789.0,67788.0,0.15077791]
[1717319151672,0.156,67789.0,67788.0,0.15077791]
[1717319160036,0.073,67789.0,67788.0,0.15077791]
[1717319160874,0.220516,67789.0,67788.0,0.15077791]
[1717319164460,0.220516,67789.0,67788.0,0.30385153]
[1717319196039,0.220516,67789.0,67788.0,0.38525153]
[1717319201099,0.220516,67789.0,67788.0,0.54145153]
[1717319201310,0.220516,67789.0,67788.0,0.55145153]
[1717319201878,0.220516,67789.0,67788.0,0.54145153]
[1717319208949,0.220516,67789.0,67788.0,0.38525153]
[1717319209127,0.220516,67789.0,67788.0,0.30385153]
[1717319248603,0.220516,67789.0,67788.0,0.15077791]
[1717319249187,0.220516,67789.0,67788.0,0.30385195]
[1717319252241,0.220516,67789.0,67788.0,0.15077791]
[1717319252717,0.220516,67789.0,67788.0,0.30385144]
[1717319252891,0.220516,67789.0,67788.0,0.15077791]
[1717319253088,0.220516,67789.0,67788.0,0.30385139]
[1717319253290,0.220516,67789.0,67788.0,0.30385144]
[1717319253702,0.220516,67789.0,67788.0,0.15077791]
[1717319254078,0.220516,67789.0,67788.0,0.30385143]
[1717319254397,0.220516,67789.0,67788.0,0.30385144]
[1717319255512,0.220516,67789.0,67788.0,0.3038514]
[1717319257304,0.220516,67789.0,67788.0,0.30385139]
[1717319259165,0.220516,67789.0,67788.0,0.15077791]
[1717319259572,0.220516,67789.0,67788.0,0.30385141]
[1717319260358,0.220516,67789.0,67788.0,0.3038514]
[1717319261597,0.220516,67789.0,67788.0,0.15077791]
[1717319262845,0.211754,67789.0,67788.0,0.15077791]
[1717319266230,0.211754,67789.0,67788.0,0.30385147]
[1717319267768,0.211754,67789.0,67788.0,0.15077791]
[1717319279335,0.24057034,67789.0,67788.0,0.15077791]
[1717319279993,0.211754,67789.0,67788.0,0.15077791]
[1717319285616,0.24056639,67789.0,67788.0,0.15077791]
[1717319285818,0.211754,67789.0,67788.0,0.15077791]
[1717319289402,0.211754,67789.0,67788.0,0.14203351]
[1717319290176,0.211754,67789.0,67788.0,0.29510781]
[1717319297317,0.211754,67789.0,67788.0,0.37120781]
[1717319298301,0.211754,67789.0,67788.0,0.21813351]
[1717319301844,0.43540299,67789.0,67788.0,0.14203351]
[1717319302111,0.43540299,67789.0,67788.0,0.19183351]
[1717319308466,0.40649731,67789.0,67788.0,0.19183351]
[1717319308669,0.43541241,67789.0,67788.0,0.19183351]
[1717319312668,0.43541241,67789.0,67788.0,0.14203351]
[1717319315396,0.67371241,67789.0,67788.0,0.005]
[1717319315650,0.71799889,67789.0,67788.0,0.005]
[1717319315866,0.67371241,67789.0,67788.0,0.005]
[1717319316107,0.74014214,67789.0,67788.0,0.005]
[1717319317305,0.67371241,67789.0,67788.0,0.005]
[1717319318329,0.44541241,67789.0,67788.0,0.005]
[1717319318557,0.68371241,67789.0,67788.0,0.005]
[1717319318913,0.75014214,67789.0,67788.0,0.005]
[1717319319128,0.88576322,67789.0,67788.0,0.005]
[1717319319507,0.79719025,67789.0,67788.0,0.005]
[1717319320483,0.68371241,67789.0,67788.0,0.005]
[1717319321336,0.75009784,67789.0,67788.0,0.005]
[1717319321905,1.09493084,67789.0,67788.0,0.005]
[1717319322183,1.39278371,67789.0,67788.0,0.005]
[1717319322758,1.32357841,67789.0,67788.0,0.005]
[1717319322958,1.36554872,67789.0,67788.0,0.002]
[1717319323275,1.36554872,67789.0,67788.0,0.003]
[1717319323675,1.36554872,67789.0,67788.0,0.002]
[1717319323904,0.147542,67777.0,67776.0,0.4691]
[1717319325317,0.147547,67775.0,67774.0,0.08067627]
[1717319325491,0.147547,67775.0,67774.0,0.22645418]
[1717319326733,0.150547,67775.0,67774.0,0.22645418]
[1717319326929,0.150547,67775.0,67774.0,0.22745418]
[1717319327140,0.151547,67775.0,67774.0,0.22745418]
[1717319328649,0.151547,67775.0,67774.0,0.17765418]
[1717319328820,0.142837,67775.0,67774.0,0.17765418]
[1717319341866,0.142837,67775.0,67774.0,0.03187627]
[1717319342095,0.224337,67775.0,67774.0,0.03187627]
[1717319348355,0.25278686,67775.0,67774.0,0.03187627]
[1717319350183,0.38604457,67775.0,67774.0,0.03187627]
[1717319351545,0.55134457,67775.0,67774.0,0.03187627]
[1717319351745,0.30454457,67775.0,67774.0,0.03187627]
[1717319353953,0.55134457,67775.0,67774.0,0.03187627]
[1717319357382,0.38604457,67775.0,67774.0,0.03187627]
[1717319357610,0.55134457,67775.0,67774.0,0.03187627]
[1717319358491,0.38604457,67775.0,67774.0,0.03187627]
[1717319360348,0.30454457,67775.0,67774.0,0.03187627]
[1717319366434,0.34871121,67775.0,67774.0,0.03187627]
[1717319367563,0.34871121,67775.0,67774.0,0.02318362]
[1717319367910,0.27609471,67775.0,67774.0,0.02318362]
[1717319368110,0.34869781,67775.0,67774.0,0.02318362]
[1717319379483,0.34870047,67775.0,67774.0,0.02318362]
[1717319379758,0.37946942,67775.0,67774.0,0.02318362]
[1717319379966,0.36631122,67775.0,67774.0,0.02318362]
[1717319380716,0.43271192,67775.0,67774.0,0.02318362]
[1717319381159,0.29127154,67775.0,67774.0,0.02318362]
[1717319385659,0.29124553,67775.0,67774.0,0.02318362]
[1717319386673,0.33551912,67775.0,67774.0,0.02318362]
[1717319387846,0.29124553,67775.0,67774.0,0.02318362]
[1717319390786,0.147549,67774.0,67773.0,0.06971266]
[1717319391005,0.34023559,67774.0,67773.0,0.06971266]
[1717319392545,0.34123559,67774.0,67773.0,0.07071266]
[1717319392737,0.34323559,67774.0,67773.0,0.07071266]
[1717319396177,0.29895753,67774.0,67773.0,0.07071266]
[1717319397049,0.34323559,67774.0,67773.0,0.07071266]
[1717319399487,0.34323559,67774.0,67773.0,0.001]
[1717319399990,0.29895753,67774.0,67773.0,0.001]
[1717319405050,0.34324185,67774.0,67773.0,0.001]
[1717319405470,0.29895753,67774.0,67773.0,0.001]
[1717319406093,0.36538242,67774.0,67773.0,0.001]
[1717319406792,0.29895753,67774.0,67773.0,0.001]
[1717319412476,0.2987016,67774.0,67773.0,0.001]
[1717319412704,0.44493809,67774.0,67773.0,0.001]
[1717319414250,0.3785016,67774.0,67773.0,0.001]
[1717319414834,0.44493492,67774.0,67773.0,0.001]
[1717319415242,0.3785016,67774.0,67773.0,0.001]
[1717319415996,0.45131874,67774.0,67773.0,0.001]
[1717319416208,0.147557,67770.0,67769.0,0.0783]
[1717319416432,0.147569,67765.0,67761.0,0.0783]
[1717319416668,0.147569,67765.0,67764.0,0.291]
[1717319416884,0.147569,67765.0,67764.0,0.43677791]
[1717319417603,0.151569,67765.0,67764.0,0.2412]
[1717319417799,0.151569,67765.0,67764.0,0.291]
[1717319417971,0.147569,67765.0,67764.0,0.291]
[1717319419242,0.151569,67765.0,67764.0,0.292]
[1717319419473,0.147569,67765.0,67764.0,0.291]
[1717319419919,0.152569,67765.0,67764.0,0.291]
[1717319422045,0.152569,67765.0,67764.0,0.2412]
[1717319422260,0.152569,67765.0,67764.0,0.291]
[1717319423354,0.152569,67765.0,67764.0,0.2412]
[1717319423577,0.152569,67765.0,67764.0,0.291]
[1717319424014,0.152569,67765.0,67764.0,0.2412]
[1717319424200,0.152569,67765.0,67764.0,0.291]
[1717319424799,0.152569,67765.0,67764.0,0.2412]
[1717319425004,0.152569,67765.0,67764.0,0.291]
[1717319425655,0.152569,67765.0,67764.0,0.2412]
[1717319425846,0.152569,67765.0,67764.0,0.291]
[1717319427361,0.152569,67765.0,67764.0,0.2412]
[1717319427573,0.152569,67765.0,67764.0,0.291]
[1717319428242,0.152569,67765.0,67764.0,0.2412]
[1717319428456,0.152569,67765.0,67764.0,0.291]
[1717319428674,0.152569,67765.0,67764.0,0.2412]
[1717319428865,0.152569,67765.0,67764.0,0.291]
[1717319429375,0.152569,67765.0,67764.0,0.2412]
[1717319429567,0.152569,67765.0,67764.0,0.291]
[1717319432658,0.152569,67765.0,67764.0,0.2412]
[1717319432860,0.152569,67765.0,67764.0,0.291]
[1717319437491,0.152569,67765.0,67764.0,0.0498]
[1717319438801,0.152569,67765.0,67763.0,0.0781]
[1717319439008,0.152569,67765.0,67763.0,0.35047791]
[1717319439213,0.152569,67765.0,67764.0,0.0781]
[1717319439423,0.152569,67765.0,67764.0,0.0765]
[1717319439833,0.15404335,67765.0,67764.0,0.0765]
[1717319440043,0.147569,67765.0,67764.0,0.0765]
[1717319440245,0.15903305,67765.0,67764.0,0.0765]
[1717319440685,0.15603305,67765.0,67764.0,0.0765]
[1717319441094,0.15903305,67765.0,67764.0,0.0765]
[1717319441221,0.16103305,67765.0,67764.0,0.0775]
[1717319446111,0.16103305,67765.0,67764.0,0.001]
[1717319446313,0.16103305,67765.0,67764.0,0.0812]
[1717319447621,0.29959743,67765.0,67764.0,0.0812]
[1717319447872,0.18925299,67765.0,67764.0,0.0812]
[1717319449392,0.2881161,67765.0,67764.0,0.0812]
[1717319449955,0.28788345,67765.0,67764.0,0.0812]
[1717319451195,0.18902034,67765.0,67764.0,0.0812]
[1717319451819,0.25524301,67765.0,67764.0,0.0812]
[1717319452225,0.18902034,67765.0,67764.0,0.0812]
[1717319458795,0.1608004,67765.0,67764.0,0.0812]
[1717319459025,0.18840459,67765.0,67764.0,0.0812]
[1717319460197,0.1608004,67765.0,67764.0,0.0812]
[1717319460399,0.15433635,67765.0,67764.0,0.0812]
[1717319461653,0.18216937,67765.0,67764.0,0.0812]
[1717319464621,0.18216937,67765.0,67764.0,0.001]
[1717319467282,0.42936937,67765.0,67764.0,0.001]
[1717319469651,0.73450637,67765.0,67764.0,0.001]
[1717319469806,0.89235789,67765.0,67764.0,0.001]
[1717319470220,0.80381705,67765.0,67764.0,0.001]
[1717319470422,0.94215789,67765.0,67764.0,0.001]
[1717319470594,0.94215789,67765.0,67751.0,0.0778]
[1717319470595,0.147597,67752.0,67751.0,0.0778]
[1717319470813,0.147597,67752.0,67751.0,0.22357791]
[1717319471672,0.147597,67752.0,67751.0,0.27337791]
[1717319472091,0.151597,67752.0,67751.0,0.27437791]
[1717319472286,0.151597,67752.0,67751.0,0.19657791]
[1717319473311,0.155597,67752.0,67751.0,0.19657791]
[1717319473497,0.151597,67752.0,67751.0,0.19557791]
[1717319473700,0.155597,67752.0,67751.0,0.14677791]
[1717319473875,0.237997,67752.0,67751.0,0.14677791]
[1717319474075,0.237997,67752.0,67751.0,0.14577791]
[1717319474446,0.240997,67752.0,67751.0,0.14677791]
[1717319475201,0.236997,67752.0,67751.0,0.14677791]
[1717319475428,0.154597,67752.0,67751.0,0.14677791]
[1717319475599,0.158597,67752.0,67751.0,0.14677791]
[1717319475835,0.240997,67752.0,67751.0,0.14677791]
[1717319478133,0.158597,67752.0,67751.0,0.14677791]
[1717319478597,0.405797,67752.0,67751.0,0.14677791]
[1717319479350,0.158597,67752.0,67751.0,0.14677791]
[1717319480880,0.154597,67752.0,67751.0,0.14677791]
[1717319481287,0.158597,67752.0,67751.0,0.14677791]
[1717319481503,0.398797,67752.0,67751.0,0.14577791]
[1717319481706,0.396797,67752.0,67751.0,0.14677791]
[1717319481910,0.149597,67752.0,67751.0,0.001]
[1717319482128,0.151597,67752.0,67751.0,0.001]
[1717319482572,0.147603,67749.0,67748.0,0.2398]
[1717319482743,0.147603,67749.0,67748.0,0.38557791]
[1717319482964,0.147603,67749.0,67748.0,0.19]
[1717319484806,0.151603,67749.0,67748.0,0.19]
[1717319485019,0.154603,67749.0,67748.0,0.191]
[1717319487042,0.154603,67749.0,67748.0,0.001]
[1717319498304,0.154603,67749.0,67748.0,0.0799]
[1717319498530,0.154603,67749.0,67748.0,0.001]
[1717319498736,0.231703,67749.0,67748.0,0.001]
[1717319499364,0.154603,67749.0,67748.0,0.001]
[1717319499989,0.18206869,67749.0,67748.0,0.001]
[1717319503668,0.147612,67745.0,67744.0,0.25137]
[1717319503873,0.147612,67745.0,67744.0,0.39714791]
[1717319505115,0.151612,67745.0,67744.0,0.39814791]
[1717319506134,0.155612,67745.0,67744.0,0.39814791]
[1717319509218,0.155612,67745.0,67744.0,0.23424791]
[1717319525257,0.155612,67745.0,67744.0,0.38854791]
[1717319534575,0.155612,67745.0,67744.0,0.00957]
[1717319534576,0.394112,67745.0,67744.0,0.00957]
[1717319534727,0.7673169,67745.0,67744.0,0.00957]
[1717319534904,0.92971709,67745.0,67744.0,0.00957]
[1717319535114,0.84115133,67745.0,67744.0,0.00957]
[1717319535309,0.85115133,67745.0,67744.0,0.00957]
[1717319536043,0.93966482,67745.0,67744.0,0.00957]
[1717319536203,0.85115133,67745.0,67744.0,0.00957]
[1717319536645,0.80135133,67745.0,67744.0,0.00957]
[1717319538203,0.86770141,67745.0,67744.0,0.00957]
[1717319538403,0.80135133,67745.0,67744.0,0.00957]
[1717319538868,0.86770141,67745.0,67744.0,0.00957]
[1717319539550,0.80135133,67745.0,67744.0,0.00957]
[1717319540299,0.80153047,67745.0,67744.0,0.00957]
[1717319542267,0.85133047,67745.0,67744.0,0.00957]
[1717319543041,0.85132948,67745.0,67744.0,0.00957]
[1717319543257,0.89553037,67745.0,67744.0,0.00957]
[1717319543471,0.85132948,67745.0,67744.0,0.00957]
[1717319544165,0.85136449,67745.0,67744.0,0.00957]
[1717319544371,0.89556133,67745.0,67744.0,0.00957]
[1717319546226,0.88556133,67745.0,67744.0,0.00957]
[1717319546604,0.89556133,67745.0,67744.0,0.00957]
[1717319550277,0.85136449,67745.0,67744.0,0.00957]
[1717319553799,1.14658849,67745.0,67744.0,0.00957]
[1717319554383,1.19078533,67745.0,67744.0,0.00957]
[1717319554597,1.14658849,67745.0,67744.0,0.00957]
[1717319554808,1.13658849,67745.0,67744.0,0.00957]
[1717319555192,1.14658849,67745.0,67744.0,0.00957]
[1717319555600,1.08678849,67745.0,67744.0,0.00957]
[1717319556224,1.09678849,67745.0,67744.0,0.00957]
[1717319556857,1.08678849,67745.0,67744.0,0.00957]
[1717319557421,1.09678849,67745.0,67744.0,0.00957]
[1717319557729,1.08678849,67745.0,67744.0,0.00957]
[1717319561021,1.13098533,67745.0,67744.0,0.00957]
[1717319561773,1.08678849,67745.0,67744.0,0.00957]
[1717319563292,1.13098533,67745.0,67744.0,0.00957]
[1717319564041,1.14098533,67745.0,67744.0,0.00957]
[1717319564189,1.13098533,67745.0,67744.0,0.00957]
[1717319564753,1.13102714,67745.0,67744.0,0.00957]
[1717319565998,1.13122714,67745.0,67744.0,0.00957]
[1717319566210,1.24122714,67745.0,67744.0,0.00957]
[1717319566404,1.1970303,67745.0,67744.0,0.00957]
[1717319566852,1.24120466,67745.0,67744.0,0.00957]
[1717319569532,1.19702838,67745.0,67744.0,0.00957]
[1717319572489,1.26337846,67745.0,67744.0,0.00957]
[1717319573401,1.26332194,67745.0,67744.0,0.00957]
[1717319573986,1.19702838,67745.0,67744.0,0.00957]
[1717319574561,1.18780731,67745.0,67744.0,0.00957]
[1717319575127,1.23760731,67745.0,67744.0,0.00957]
[1717319575542,1.32618238,67745.0,67744.0,0.00957]
[1717319576758,1.16528238,67745.0,67744.0,0.00957]
[1717319577162,1.08748238,67745.0,67744.0,0.00957]
[1717319577398,0.99906789,67745.0,67744.0,0.00957]
[1717319577748,0.94926789,67745.0,67744.0,0.00957]
[1717319578366,1.05978601,67745.0,67744.0,0.00957]
[1717319579461,0.94926789,67745.0,67744.0,0.00957]
[1717319580452,0.65404389,67745.0,67744.0,0.00957]
[1717319582738,0.64544389,67745.0,67744.0,0.00957]
[1717319585843,0.57052943,67745.0,67744.0,0.00957]
[1717319586012,0.64974236,67745.0,67744.0,0.00957]
[1717319587469,0.542236,67745.0,67744.0,0.00957]
[1717319587669,0.64189905,67745.0,67744.0,0.00957]
[1717319594635,0.72976264,67745.0,67744.0,0.00957]
[1717319596353,0.64189905,67745.0,67744.0,0.00957]
[1717319598242,0.66485266,67745.0,67744.0,0.00957]
[1717319598763,0.59393429,67745.0,67744.0,0.00957]
[1717319598987,0.66495965,67745.0,67744.0,0.00957]
[1717319599393,0.64200604,67745.0,67744.0,0.00957]
[1717319600795,0.64201615,67745.0,67744.0,0.00957]
[1717319601292,0.63621481,67745.0,67744.0,0.00957]
[1717319601501,0.6649696,67745.0,67744.0,0.00957]
[1717319603330,0.64201615,67745.0,67744.0,0.00957]
[1717319606232,0.64201615,67745.0,67744.0,0.000988]
[1717319606819,0.64071615,67745.0,67744.0,0.000988]
[1717319613093,0.34549215,67745.0,67744.0,0.000988]
[1717319613320,0.64071615,67745.0,67744.0,0.000988]
[1717319613496,0.64071615,67745.0,67744.0,0.234288]
[1717319613698,0.75139253,67745.0,67744.0,0.234288]
[1717319613904,0.75139383,67745.0,67744.0,0.234288]
[1717319614110,0.45616983,67745.0,67744.0,0.234288]
[1717319614266,0.34549215,67745.0,67744.0,0.234288]
[1717319618454,0.43399625,67745.0,67744.0,0.234288]
[1717319620022,0.33399625,67745.0,67744.0,0.42986591]
[1717319620204,0.218719,67745.0,67744.0,0.42986591]
[1717319620452,0.17446679,67745.0,67744.0,0.42986591]
[1717319620679,0.145712,67745.0,67744.0,0.42986591]
[1717319621573,0.145712,67745.0,67744.0,0.000988]
[1717319621775,0.77574002,67745.0,67744.0,0.000988]
[1717319621972,0.78574002,67745.0,67744.0,0.000988]
[1717319622206,0.69723592,67745.0,67744.0,0.000988]
[1717319622788,0.69752737,67745.0,67744.0,0.000988]
[1717319624127,0.68752737,67745.0,67744.0,0.000988]
[1717319624357,0.69752737,67745.0,67744.0,0.000988]
[1717319626312,0.69752737,67745.0,67737.0,0.2334]
[1717319626591,0.69752737,67745.0,67737.0,0.232888]
[1717319626592,0.147627,67738.0,67737.0,0.232888]
[1717319626867,0.27668724,67738.0,67737.0,0.232888]
[1717319627752,0.32090068,67738.0,67737.0,0.232888]
[1717319627952,0.32490068,67738.0,67737.0,0.233888]
[1717319629577,0.32890068,67738.0,67737.0,0.233888]
[1717319630239,0.62415568,67738.0,67737.0,0.233888]
[1717319630444,0.62415568,67738.0,67737.0,0.001]
[1717319635257,0.65125708,67738.0,67737.0,0.001]
[1717319635910,0.65154164,67738.0,67737.0,0.001]
[1717319636332,0.69574606,67738.0,67737.0,0.001]
[1717319637683,0.62462073,67738.0,67737.0,0.001]
[1717319641514,0.03753431,67738.0,67737.0,0.42997791]
[1717319641727,0.03753431,67738.0,67737.0,0.43997791]
[1717319642337,0.03753431,67738.0,67737.0,0.52856791]
[1717319644992,0.008,67738.0,67737.0,0.52856791]
[1717319645197,0.03769483,67738.0,67737.0,0.52856791]
[1717319645712,0.03769483,67738.0,67737.0,0.67619691]
[1717319645713,0.008,67738.0,67737.0,0.67619691]
[1717319646127,0.008,67738.0,67737.0,0.77619691]
[1717319646550,0.008,67738.0,67737.0,0.87619691]
[1717319646753,0.04420174,67751.0,67750.0,0.2409]
[1717319646962,0.04420174,67759.0,67752.0,0.2309]
[1717319647176,0.13260523,67771.0,67752.0,0.2309]
[1717319647177,0.147579,67760.0,67755.0,0.0775]
[1717319647384,0.147579,67760.0,67756.0,0.29895687]
[1717319647593,0.147579,67760.0,67757.0,0.15317896]
[1717319647594,0.13899,67760.0,67757.0,0.15317896]
[1717319647768,0.13899,67760.0,67758.0,0.29895687]
[1717319648011,0.13899,67760.0,67759.0,0.38405911]
[1717319648649,0.14099,67760.0,67759.0,0.38405911]
[1717319649059,0.13899,67760.0,67759.0,0.38405911]
[1717319649282,0.13899,67760.0,67759.0,0.38505911]
[1717319649450,0.15299,67760.0,67759.0,0.38505911]
[1717319650831,0.15299,67760.0,67759.0,0.2319]
[1717319653599,0.15952825,67760.0,67759.0,0.2319]
[1717319653855,0.15299,67760.0,67759.0,0.2319]
[1717319654064,0.15952825,67760.0,67759.0,0.2319]
[1717319658279,0.15952825,67760.0,67759.0,0.37767791]
[1717319658482,0.15952825,67760.0,67759.0,0.42747791]
[1717319658483,0.15299,67760.0,67759.0,0.42747791]
[1717319658719,0.15299,67760.0,67759.0,0.37767791]
[1717319658916,0.15952825,67760.0,67759.0,0.37767791]
[1717319662639,0.02053825,67760.0,67759.0,0.37767791]
[1717319662779,0.02053825,67760.0,67759.0,0.42747791]
[1717319662978,0.014,67760.0,67759.0,0.37767791]
[1717319664907,0.02053825,67760.0,67759.0,0.37767791]
[1717319665759,0.02053825,67760.0,67759.0,0.42747791]
[1717319666306,0.014,67760.0,67759.0,0.42747791]
[1717319666715,0.014,67760.0,67759.0,0.37767791]
[1717319666923,0.014,67760.0,67759.0,0.42747791]
[1717319667327,0.014,67760.0,67759.0,0.37767791]
[1717319667586,0.014,67760.0,67759.0,0.42747791]
[1717319667767,0.014,67760.0,67759.0,0.58062716]
[1717319668194,0.014,67760.0,67759.0,0.53082716]
[1717319668815,0.014,67760.0,67759.0,0.22427791]
[1717319669244,0.014,67760.0,67759.0,0.37743228]
[1717319670179,0.02053215,67760.0,67759.0,0.37743228]
[1717319671023,0.02053215,67760.0,67759.0,0.37742984]
[1717319671644,0.014,67760.0,67759.0,0.37742984]
[1717319672848,0.161579,67760.0,67759.0,0.37742984]
[1717319673240,0.16811115,67760.0,67759.0,0.37742984]
[1717319674823,0.16811115,67760.0,67759.0,0.29992984]
[1717319676256,0.18105805,67760.0,67759.0,0.29992984]
[1717319678181,0.18105805,67760.0,67759.0,0.37572984]
[1717319682436,0.18105805,67760.0,67759.0,0.29992984]
[1717319684070,0.18105805,67760.0,67759.0,0.15415193]
[1717319684284,0.42505805,67760.0,67759.0,0.15415193]
[1717319688643,0.42505805,67760.0,67759.0,0.001]
[1717319690671,0.18105805,67760.0,67759.0,0.001]
[1717319693487,0.22510723,67760.0,67759.0,0.001]
[1717319695657,0.18105805,67760.0,67759.0,0.001]
[1717319696526,0.22532169,67760.0,67759.0,0.001]
[1717319696743,0.21878954,67760.0,67759.0,0.001]
[1717319696973,0.22538734,67760.0,67759.0,0.001]
[1717319697611,0.1811237,67760.0,67759.0,0.001]
[1717319697854,0.22538751,67760.0,67759.0,0.001]
[1717319699322,0.1811237,67760.0,67759.0,0.001]
[1717319699918,0.22538518,67760.0,67759.0,0.001]
[1717319701160,0.1811237,67760.0,67759.0,0.001]
[1717319701560,0.22538492,67760.0,67759.0,0.001]
[1717319702930,0.1811237,67760.0,67759.0,0.001]
[1717319703075,0.18961789,67760.0,67759.0,0.001]
[1717319703289,0.18961789,67760.0,67759.0,0.2951]
[1717319703509,0.18961789,67760.0,67759.0,0.44087791]
[1717319704325,0.18961789,67760.0,67759.0,0.39107791]
[1717319704539,0.18961789,67760.0,67759.0,0.44087791]
[1717319704895,0.18302009,67760.0,67759.0,0.44087791]
[1717319705306,0.18962054,67760.0,67759.0,0.44087791]
[1717319705516,0.04204154,67760.0,67759.0,0.44087791]
[1717319706985,0.04204154,67760.0,67759.0,0.39107791]
[1717319707195,0.04204154,67760.0,67759.0,0.44087791]
[1717319708434,0.04204154,67760.0,67759.0,0.39107791]
[1717319712634,0.04722393,67760.0,67759.0,0.40107791]
[1717319712834,0.04722393,67760.0,67759.0,0.39107791]
[1717319713175,0.04722393,67760.0,67759.0,0.40107791]
[1717319714242,0.04722393,67760.0,67759.0,0.55422586]
[1717319714449,0.04062348,67760.0,67759.0,0.55422586]
[1717319714820,0.04062348,67760.0,67759.0,0.60402586]
[1717319715268,0.014,67760.0,67759.0,0.60402586]
[1717319715528,0.014,67760.0,67759.0,0.69261586]
[1717319716166,0.007,67760.0,67759.0,0.69261586]
[1717319716583,0.008,67760.0,67759.0,0.70361586]
[1717319716825,0.001,67760.0,67759.0,0.70261586]
[1717319717075,0.001,67760.0,67759.0,0.85519686]
[1717319717460,0.001,67760.0,67759.0,0.85019686]
[1717319717670,0.004,67760.0,67759.0,0.90111482]
[1717319718048,0.003,67760.0,67759.0,0.93367885]
[1717319718397,0.009,67760.0,67759.0,1.00367885]
[1717319718592,0.003,67760.0,67759.0,0.96667885]
[1717319718991,0.147543,67777.0,67770.0,0.2443]
[1717319719293,0.02043025,67776.0,67773.0,0.0498]
[1717319719497,0.01377877,67775.0,67773.0,0.0498]
[1717319720036,0.00665148,67774.0,67773.0,0.0498]
[1717319720237,0.00665148,67774.0,67770.0,0.2941]
[1717319720520,0.147545,67776.0,67773.0,0.001]
[1717319720680,0.01377128,67775.0,67773.0,0.001]
[1717319721089,0.01377128,67775.0,67773.0,0.002]
[1717319721539,0.16131828,67775.0,67770.0,0.2613]
[1717319721790,0.01379901,67774.0,67773.0,0.001]
[1717319722400,0.01386902,67774.0,67773.0,0.001]
[1717319722610,0.01386902,67774.0,67773.0,0.008]
[1717319723233,0.01386902,67774.0,67773.0,0.001]
[1717319723409,0.147547,67775.0,67773.0,0.001]
[1717319723575,0.147547,67775.0,67770.0,0.2443]
[1717319724034,0.147547,67775.0,67773.0,0.001]
[1717319724655,0.001,67774.0,67773.0,0.008]